[Event "Late-Titled-Tuesday-Blitz-March-12-2024"]
[Site "Chess.com"]
[Date "2024.03.12"]
[Round "5"]
[White "GoltsevDmitry2000"]
[Black "remi04"]
[Result "1-0"]
[WhiteElo "2706"]
[BlackElo "2891"]
[TimeControl "180+1"]
[EndTime "14:55:44 PDT"]
[Termination "GoltsevDmitry2000 won by resignation"]

1. e4 {[%clk 0:02:56.7]} 1... g6 {[%clk 0:02:59.6]} 2. h4 {[%clk 0:02:55.8]}
2... c6 {[%clk 0:02:56.1]} 3. e5 {[%clk 0:02:54.5]} 3... Bg7 {[%clk 0:02:55]} 4.
d4 {[%clk 0:02:53.9]} 4... d6 {[%clk 0:02:55.2]} 5. exd6 {[%clk 0:02:54.1]} 5...
Qxd6 {[%clk 0:02:52.9]} 6. c3 {[%clk 0:02:54.4]} 6... Nf6 {[%clk 0:02:44.2]} 7.
Nf3 {[%clk 0:02:47.5]} 7... O-O {[%clk 0:02:43.4]} 8. Be2 {[%clk 0:02:46.7]}
8... Bg4 {[%clk 0:02:43.6]} 9. Nbd2 {[%clk 0:02:45.7]} 9... Nbd7 {[%clk
0:02:42.6]} 10. Nc4 {[%clk 0:02:45.4]} 10... Qc7 {[%clk 0:02:35.2]} 11. Ne3
{[%clk 0:02:44.4]} 11... Bxf3 {[%clk 0:02:34]} 12. Bxf3 {[%clk 0:02:44.4]} 12...
e5 {[%clk 0:02:34.8]} 13. h5 {[%clk 0:02:40.5]} 13... exd4 {[%clk 0:02:33]} 14.
cxd4 {[%clk 0:02:38.9]} 14... Rfe8 {[%clk 0:02:29.9]} 15. hxg6 {[%clk
0:02:30.9]} 15... hxg6 {[%clk 0:02:29.4]} 16. O-O {[%clk 0:02:03.8]} 16... Rad8
{[%clk 0:02:28.4]} 17. Qb3 {[%clk 0:01:59.1]} 17... Nf8 {[%clk 0:02:17]} 18. d5
{[%clk 0:01:53.9]} 18... c5 {[%clk 0:02:06.5]} 19. Qc4 {[%clk 0:01:24.3]} 19...
N8d7 {[%clk 0:02:04.7]} 20. Rd1 {[%clk 0:00:57.2]} 20... Ne5 {[%clk 0:02:04.2]}
21. Qf4 {[%clk 0:00:57.7]} 21... Nxf3+ {[%clk 0:01:20.7]} 22. Qxf3 {[%clk
0:00:58.6]} 22... b5 {[%clk 0:01:20.9]} 23. a4 {[%clk 0:00:49.2]} 23... a6
{[%clk 0:01:20.7]} 24. axb5 {[%clk 0:00:47.5]} 24... axb5 {[%clk 0:01:21.6]} 25.
Ra6 {[%clk 0:00:46.7]} 25... Ne4 {[%clk 0:01:18.2]} 26. d6 {[%clk 0:00:30.4]}
26... Qb7 {[%clk 0:00:48.3]} 27. Ra3 {[%clk 0:00:27.3]} 27... Rxd6 {[%clk
0:00:45.3]} 28. Rxd6 {[%clk 0:00:17.4]} 28... Nxd6 {[%clk 0:00:46.2]} 29. Qxb7
{[%clk 0:00:13.5]} 29... Nxb7 {[%clk 0:00:47.1]} 30. Ra6 {[%clk 0:00:12.3]}
30... Re6 {[%clk 0:00:36]} 31. Ra8+ {[%clk 0:00:10.8]} 31... Kh7 {[%clk
0:00:35.6]} 32. Ra7 {[%clk 0:00:10.9]} 32... Nd6 {[%clk 0:00:34.7]} 33. b3
{[%clk 0:00:08.5]} 33... Bd4 {[%clk 0:00:33.7]} 34. Rd7 {[%clk 0:00:06.9]} 34...
Kg7 {[%clk 0:00:28.6]} 35. Nc2 {[%clk 0:00:06.8]} 35... Bf6 {[%clk 0:00:25.8]}
36. Be3 {[%clk 0:00:06.5]} 36... c4 {[%clk 0:00:24.7]} 37. Nd4 {[%clk
0:00:06.7]} 37... Bxd4 {[%clk 0:00:16.7]} 38. Bxd4+ {[%clk 0:00:07.6]} 38... Kh7
{[%clk 0:00:16.8]} 39. bxc4 {[%clk 0:00:08.3]} 39... bxc4 {[%clk 0:00:15.7]} 40.
Bc5 {[%clk 0:00:08.5]} 40... Ne4 {[%clk 0:00:15.5]} 41. Rxf7+ {[%clk 0:00:07.3]}
41... Kg8 {[%clk 0:00:15.8]} 42. Rc7 {[%clk 0:00:06.5]} 42... Nxc5 {[%clk
0:00:06.6]} 43. Rxc5 {[%clk 0:00:06.1]} 43... Re1+ {[%clk 0:00:07.5]} 44. Kh2
{[%clk 0:00:06.1]} 44... Rc1 {[%clk 0:00:08.1]} 45. Kg3 {[%clk 0:00:06]} 45...
Kf7 {[%clk 0:00:08.5]} 46. Rc6 {[%clk 0:00:06.5]} 46... Rc2 {[%clk 0:00:08.2]}
47. Kf3 {[%clk 0:00:06.2]} 47... c3 {[%clk 0:00:08.2]} 48. Ke3 {[%clk
0:00:06.7]} 48... Kg7 {[%clk 0:00:08.3]} 49. g4 {[%clk 0:00:06.4]} 49... Kf7
{[%clk 0:00:08.1]} 50. f3 {[%clk 0:00:06.2]} 50... Rc1 {[%clk 0:00:07.8]} 51.
Rc4 {[%clk 0:00:04.6]} 51... c2 {[%clk 0:00:07.1]} 52. Kd2 {[%clk 0:00:05.3]}
52... Rf1 {[%clk 0:00:07.2]} 53. Rf4+ {[%clk 0:00:05.9]} 53... Ke6 {[%clk
0:00:07.3]} 54. Kxc2 {[%clk 0:00:06.4]} 54... Ke5 {[%clk 0:00:07]} 55. Rf8
{[%clk 0:00:06.4]} 55... Re1 {[%clk 0:00:06.6]} 56. Kd2 {[%clk 0:00:06.3]} 56...
Rh1 {[%clk 0:00:06.2]} 57. Ke2 {[%clk 0:00:05.3]} 57... Rh2+ {[%clk 0:00:06]}
58. Ke3 {[%clk 0:00:05.6]} 58... Rh3 {[%clk 0:00:05.9]} 59. Kf2 {[%clk
0:00:05.3]} 59... Rh7 {[%clk 0:00:05.5]} 60. Kg3 {[%clk 0:00:05.6]} 60... Rc7
{[%clk 0:00:05.9]} 61. Kh4 {[%clk 0:00:04.4]} 61... Rc3 {[%clk 0:00:03.8]} 62.
Kg5 {[%clk 0:00:04.7]} 62... Rc6 {[%clk 0:00:04.5]} 63. f4+ {[%clk 0:00:04.6]}
63... Ke4 {[%clk 0:00:05.1]} 64. Re8+ {[%clk 0:00:05]} 64... Kf3 {[%clk
0:00:05.2]} 65. f5 {[%clk 0:00:05.4]} 65... gxf5 {[%clk 0:00:05.6]} 66. gxf5
{[%clk 0:00:06.3]} 66... Rc5 {[%clk 0:00:06.1]} 67. Kg6 {[%clk 0:00:06.6]} 67...
Kf4 {[%clk 0:00:06.6]} 68. f6 {[%clk 0:00:06.8]} 68... Rg5+ {[%clk 0:00:06.7]}
69. Kh7 {[%clk 0:00:05.7]} 69... Rf5 {[%clk 0:00:06.2]} 70. Kg7 {[%clk
0:00:05.4]} 70... Rg5+ {[%clk 0:00:06.8]} 71. Kf7 {[%clk 0:00:04.9]} 71... Kf5
{[%clk 0:00:06.5]} 72. Ra8 {[%clk 0:00:05.5]} 72... Rg1 {[%clk 0:00:06.6]} 73.
Ra5+ {[%clk 0:00:05.5]} 73... Ke4 {[%clk 0:00:07.1]} 74. Kf8 {[%clk 0:00:05.3]}
1-0

[Event "Late-Titled-Tuesday-Blitz-March-12-2024"]
[Site "Chess.com"]
[Date "2024.03.12"]
[Round "5"]
[White "Quattroporte300"]
[Black "varunkrishnanchess"]
[Result "1-0"]
[WhiteElo "2493"]
[BlackElo "2600"]
[TimeControl "180+1"]
[EndTime "14:55:47 PDT"]
[Termination "Quattroporte300 won by checkmate"]

1. e4 {[%clk 0:02:57.5]} 1... f6 {[%clk 0:00:14.6]} 2. d4 {[%clk 0:02:56.3]}
2... e6 {[%clk 0:00:14.4]} 3. Nc3 {[%clk 0:02:56.5]} 3... d5 {[%clk 0:00:13.9]}
4. Nf3 {[%clk 0:02:52.8]} 4... dxe4 {[%clk 0:00:14]} 5. Nxe4 {[%clk 0:02:52.8]}
5... Nc6 {[%clk 0:00:13.5]} 6. Bc4 {[%clk 0:02:52.9]} 6... Nge7 {[%clk
0:00:10.4]} 7. c3 {[%clk 0:02:53.3]} 7... Nd5 {[%clk 0:00:10.3]} 8. Qe2 {[%clk
0:02:53.5]} 8... Be7 {[%clk 0:00:10.1]} 9. O-O {[%clk 0:02:51.4]} 9... O-O
{[%clk 0:00:10]} 10. Nc5 {[%clk 0:02:49.2]} 10... Bxc5 {[%clk 0:00:09.7]} 11.
dxc5 {[%clk 0:02:50.1]} 11... Re8 {[%clk 0:00:07.2]} 12. Rd1 {[%clk 0:02:43.5]}
12... Nce7 {[%clk 0:00:06.7]} 13. Nd4 {[%clk 0:02:39.8]} 13... e5 {[%clk
0:00:06.6]} 14. Nb5 {[%clk 0:02:33.5]} 14... Be6 {[%clk 0:00:06]} 15. f4 {[%clk
0:02:25.2]} 15... a6 {[%clk 0:00:06.3]} 16. Na3 {[%clk 0:02:08.3]} 16... Nc6
{[%clk 0:00:03.7]} 17. Qf3 {[%clk 0:01:16.6]} 17... Nce7 {[%clk 0:00:03.4]} 18.
Be3 {[%clk 0:01:12.5]} 18... c6 {[%clk 0:00:03.3]} 19. fxe5 {[%clk 0:01:08.1]}
19... fxe5 {[%clk 0:00:04.2]} 20. Bg5 {[%clk 0:01:03.9]} 20... Qc7 {[%clk
0:00:04.2]} 21. Bb3 {[%clk 0:00:52.6]} 21... Ng6 {[%clk 0:00:04.3]} 22. Nc4
{[%clk 0:00:52.4]} 22... Ndf4 {[%clk 0:00:04]} 23. Nd6 {[%clk 0:00:47.3]} 23...
Rf8 {[%clk 0:00:03.8]} 24. Qe4 {[%clk 0:00:39.4]} 24... Bxb3 {[%clk 0:00:03.7]}
25. axb3 {[%clk 0:00:38.8]} 25... Ne6 {[%clk 0:00:04]} 26. Be3 {[%clk 0:00:37]}
26... Qe7 {[%clk 0:00:03.9]} 27. Rf1 {[%clk 0:00:33.5]} 27... Ngf4 {[%clk
0:00:03.8]} 28. g3 {[%clk 0:00:31.5]} 28... Nd5 {[%clk 0:00:04]} 29. Qxe5 {[%clk
0:00:27.3]} 29... Nxe3 {[%clk 0:00:03.7]} 30. Qxe3 {[%clk 0:00:27]} 30... Qd7
{[%clk 0:00:02.1]} 31. b4 {[%clk 0:00:26.9]} 31... Nc7 {[%clk 0:00:02.3]} 32.
Rae1 {[%clk 0:00:21.9]} 32... Nd5 {[%clk 0:00:02.3]} 33. Qe6+ {[%clk 0:00:20.9]}
33... Qxe6 {[%clk 0:00:02.4]} 34. Rxe6 {[%clk 0:00:21.8]} 34... Rxf1+ {[%clk
0:00:02.8]} 35. Kxf1 {[%clk 0:00:22.3]} 35... Rf8+ {[%clk 0:00:02.9]} 36. Ke2
{[%clk 0:00:22.6]} 36... h5 {[%clk 0:00:03.4]} 37. Nxb7 {[%clk 0:00:18.8]} 37...
h4 {[%clk 0:00:03.8]} 38. Nd6 {[%clk 0:00:18.6]} 38... h3 {[%clk 0:00:04]} 39.
Re8 {[%clk 0:00:15.7]} 39... Nf6 {[%clk 0:00:03.7]} 40. Rxf8+ {[%clk 0:00:15.9]}
40... Kxf8 {[%clk 0:00:04.6]} 41. Kf3 {[%clk 0:00:15.8]} 41... Ke7 {[%clk
0:00:04.9]} 42. Nf5+ {[%clk 0:00:13.5]} 42... Kf7 {[%clk 0:00:05]} 43. Nd4
{[%clk 0:00:14]} 43... g5 {[%clk 0:00:05.2]} 44. Nxc6 {[%clk 0:00:13.9]} 44...
g4+ {[%clk 0:00:05.4]} 45. Ke2 {[%clk 0:00:14.5]} 45... Ne4 {[%clk 0:00:05.2]}
46. Ne5+ {[%clk 0:00:13.2]} 46... Ke6 {[%clk 0:00:05.7]} 47. Nxg4 {[%clk
0:00:13.4]} 47... Kf5 {[%clk 0:00:06.1]} 48. Nf2 {[%clk 0:00:13.7]} 48... Ng5
{[%clk 0:00:06.2]} 49. c4 {[%clk 0:00:12.3]} 49... Ke5 {[%clk 0:00:06.6]} 50.
Ke3 {[%clk 0:00:11.3]} 50... Ke6 {[%clk 0:00:05.7]} 51. Kf4 {[%clk 0:00:10.9]}
51... Kf6 {[%clk 0:00:06.3]} 52. b5 {[%clk 0:00:09.8]} 52... Ne6+ {[%clk
0:00:06]} 53. Ke3 {[%clk 0:00:08.3]} 53... Nxc5 {[%clk 0:00:06]} 54. Nxh3 {[%clk
0:00:08.9]} 54... a5 {[%clk 0:00:06.4]} 55. Nf4 {[%clk 0:00:08.4]} 55... Na4
{[%clk 0:00:06.1]} 56. Nd3 {[%clk 0:00:08.3]} 56... Ke6 {[%clk 0:00:06.2]} 57.
c5 {[%clk 0:00:08.7]} 57... Kd5 {[%clk 0:00:06.2]} 58. b6 {[%clk 0:00:09]} 58...
Kc6 {[%clk 0:00:06.3]} 59. h4 {[%clk 0:00:09.2]} 59... Kb7 {[%clk 0:00:06.7]}
60. h5 {[%clk 0:00:09.5]} 60... Ka6 {[%clk 0:00:06.3]} 61. h6 {[%clk 0:00:09.9]}
61... Nxb6 {[%clk 0:00:06.6]} 62. cxb6 {[%clk 0:00:09.6]} 62... a4 {[%clk
0:00:07.5]} 63. h7 {[%clk 0:00:09.9]} 63... Kxb6 {[%clk 0:00:08.4]} 64. h8=Q
{[%clk 0:00:09.1]} 64... Kb5 {[%clk 0:00:09.3]} 65. Qb8+ {[%clk 0:00:09.1]}
65... Kc4 {[%clk 0:00:10.2]} 66. Qc7+ {[%clk 0:00:09.3]} 66... Kb3 {[%clk
0:00:10.7]} 67. Qc3+ {[%clk 0:00:09.4]} 67... Ka2 {[%clk 0:00:11.1]} 68. Qc4+
{[%clk 0:00:09.7]} 68... Kb1 {[%clk 0:00:11.2]} 69. Qc1+ {[%clk 0:00:07.2]}
69... Ka2 {[%clk 0:00:11.1]} 70. Nb4+ {[%clk 0:00:07.7]} 70... Kb3 {[%clk
0:00:11.1]} 71. Qc2+ {[%clk 0:00:07.6]} 71... Kxb4 {[%clk 0:00:11.4]} 72. Qxa4+
{[%clk 0:00:07.7]} 72... Kxa4 {[%clk 0:00:11.6]} 73. g4 {[%clk 0:00:08]} 73...
Kb3 {[%clk 0:00:12.5]} 74. g5 {[%clk 0:00:08.4]} 74... Kxb2 {[%clk 0:00:13.4]}
75. g6 {[%clk 0:00:09.1]} 75... Kc3 {[%clk 0:00:14.2]} 76. g7 {[%clk 0:00:09.7]}
76... Kc4 {[%clk 0:00:15.1]} 77. g8=Q+ {[%clk 0:00:10.5]} 77... Kc3 {[%clk
0:00:15.5]} 78. Qc8+ {[%clk 0:00:10.2]} 78... Kb2 {[%clk 0:00:16.4]} 79. Kd2
{[%clk 0:00:10.3]} 79... Kb3 {[%clk 0:00:17.3]} 80. Qc3+ {[%clk 0:00:10]} 80...
Ka4 {[%clk 0:00:17.8]} 81. Qb2 {[%clk 0:00:09.9]} 81... Ka5 {[%clk 0:00:18.7]}
82. Kc3 {[%clk 0:00:10.4]} 82... Ka6 {[%clk 0:00:19.6]} 83. Kc4 {[%clk 0:00:11]}
83... Ka7 {[%clk 0:00:20.5]} 84. Kc5 {[%clk 0:00:11.5]} 84... Ka8 {[%clk
0:00:21.4]} 85. Kc6 {[%clk 0:00:12.1]} 85... Ka7 {[%clk 0:00:22.3]} 86. Qb7#
{[%clk 0:00:12.4]} 1-0

[Event "Late-Titled-Tuesday-Blitz-March-12-2024"]
[Site "Chess.com"]
[Date "2024.03.12"]
[Round "5"]
[White "artin10862"]
[Black "Korchmar_Vasiliy"]
[Result "0-1"]
[WhiteElo "2887"]
[BlackElo "2710"]
[TimeControl "180+1"]
[EndTime "14:55:55 PDT"]
[Termination "Korchmar_Vasiliy won on time"]

1. c4 {[%clk 0:03:00.9]} 1... c6 {[%clk 0:02:59.4]} 2. Nf3 {[%clk 0:02:54.8]}
2... d5 {[%clk 0:02:59.5]} 3. d4 {[%clk 0:02:55.3]} 3... Nf6 {[%clk 0:02:59.4]}
4. Nc3 {[%clk 0:02:56]} 4... a6 {[%clk 0:02:59.6]} 5. c5 {[%clk 0:02:54.4]} 5...
Bf5 {[%clk 0:02:59.5]} 6. Qb3 {[%clk 0:02:48.9]} 6... Qc8 {[%clk 0:02:59.3]} 7.
h3 {[%clk 0:02:47.9]} 7... e6 {[%clk 0:02:59.3]} 8. Bf4 {[%clk 0:02:47]} 8...
Nbd7 {[%clk 0:02:59.5]} 9. e3 {[%clk 0:02:46.9]} 9... Be7 {[%clk 0:02:58.4]} 10.
Be2 {[%clk 0:02:34.4]} 10... Ne4 {[%clk 0:02:58.5]} 11. O-O {[%clk 0:02:32.3]}
11... O-O {[%clk 0:02:57.5]} 12. Nxe4 {[%clk 0:02:22.9]} 12... Bxe4 {[%clk
0:02:58.4]} 13. Nd2 {[%clk 0:02:23.1]} 13... Bg6 {[%clk 0:02:58.5]} 14. Qc3
{[%clk 0:02:20.2]} 14... Re8 {[%clk 0:02:58.6]} 15. b4 {[%clk 0:02:19.5]} 15...
Bf6 {[%clk 0:02:41]} 16. Nf3 {[%clk 0:02:19.1]} 16... Be4 {[%clk 0:02:41.6]} 17.
Ne5 {[%clk 0:02:16]} 17... Nxe5 {[%clk 0:02:38.3]} 18. Bxe5 {[%clk 0:02:16.9]}
18... Bxe5 {[%clk 0:02:37.6]} 19. dxe5 {[%clk 0:02:17.8]} 19... Qc7 {[%clk
0:02:02.2]} 20. a4 {[%clk 0:02:15.2]} 20... Rec8 {[%clk 0:02:02.4]} 21. Rfc1
{[%clk 0:02:11]} 21... Qd7 {[%clk 0:01:48.2]} 22. f3 {[%clk 0:02:09.2]} 22...
Bg6 {[%clk 0:01:48]} 23. g4 {[%clk 0:02:08.4]} 23... h6 {[%clk 0:01:47.3]} 24.
Kg2 {[%clk 0:02:07.9]} 24... Qe7 {[%clk 0:01:45.9]} 25. Kg3 {[%clk 0:02:07.8]}
25... h5 {[%clk 0:01:41.8]} 26. Qd4 {[%clk 0:02:03.5]} 26... h4+ {[%clk
0:01:40.3]} 27. Kf2 {[%clk 0:02:01.6]} 27... Rc7 {[%clk 0:01:28.1]} 28. f4
{[%clk 0:02:00.6]} 28... Be4 {[%clk 0:01:26.4]} 29. Bf3 {[%clk 0:01:56.4]} 29...
Bg6 {[%clk 0:01:17]} 30. a5 {[%clk 0:01:49.9]} 30... Rf8 {[%clk 0:01:13.2]} 31.
Rg1 {[%clk 0:01:47.2]} 31... f6 {[%clk 0:01:09.2]} 32. Raf1 {[%clk 0:01:39.1]}
32... Bc2 {[%clk 0:00:55.5]} 33. Be2 {[%clk 0:01:33]} 33... Be4 {[%clk
0:00:52.9]} 34. Ke1 {[%clk 0:01:30.7]} 34... Rd7 {[%clk 0:00:46.5]} 35. Kd2
{[%clk 0:01:25.9]} 35... fxe5 {[%clk 0:00:41.6]} 36. Qxe5 {[%clk 0:01:25.2]}
36... Qf6 {[%clk 0:00:40.9]} 37. Qd4 {[%clk 0:01:19.8]} 37... Rdf7 {[%clk
0:00:35.5]} 38. Qxf6 {[%clk 0:01:13.6]} 38... gxf6 {[%clk 0:00:35.7]} 39. g5
{[%clk 0:01:12.5]} 39... Rg7 {[%clk 0:00:28.4]} 40. gxf6 {[%clk 0:01:08.3]}
40... Rxf6 {[%clk 0:00:29.3]} 41. Rxg7+ {[%clk 0:01:08.9]} 41... Kxg7 {[%clk
0:00:29.4]} 42. Rg1+ {[%clk 0:01:08.9]} 42... Rg6 {[%clk 0:00:28.9]} 43. Rxg6+
{[%clk 0:00:55.6]} 43... Kxg6 {[%clk 0:00:28.6]} 44. Bg4 {[%clk 0:00:53.9]}
44... Kf6 {[%clk 0:00:20.6]} 45. Ke2 {[%clk 0:00:54.3]} 45... Bf5 {[%clk
0:00:14.1]} 46. Kf2 {[%clk 0:00:37.2]} 46... e5 {[%clk 0:00:14.4]} 47. Kf3
{[%clk 0:00:21.8]} 47... e4+ {[%clk 0:00:14.8]} 48. Kg2 {[%clk 0:00:18.3]} 48...
Bxg4 {[%clk 0:00:15.1]} 49. hxg4 {[%clk 0:00:19]} 49... d4 {[%clk 0:00:15.8]}
50. exd4 {[%clk 0:00:16]} 50... e3 {[%clk 0:00:16.4]} 51. d5 {[%clk 0:00:15.3]}
51... cxd5 {[%clk 0:00:17.3]} 52. b5 {[%clk 0:00:15.7]} 52... e2 {[%clk
0:00:14.1]} 53. Kf2 {[%clk 0:00:15.6]} 53... h3 {[%clk 0:00:12]} 54. c6 {[%clk
0:00:16]} 54... e1=Q+ {[%clk 0:00:10.6]} 55. Kxe1 {[%clk 0:00:16.2]} 55... h2
{[%clk 0:00:11]} 56. cxb7 {[%clk 0:00:15.8]} 56... h1=Q+ {[%clk 0:00:11.4]} 57.
Kf2 {[%clk 0:00:15.4]} 57... Qh2+ {[%clk 0:00:11.1]} 58. Kf3 {[%clk 0:00:15.6]}
58... Qh3+ {[%clk 0:00:10.8]} 59. Kf2 {[%clk 0:00:16.1]} 59... Qh4+ {[%clk
0:00:08.7]} 60. Kf3 {[%clk 0:00:16.3]} 60... Qh1+ {[%clk 0:00:07.8]} 61. Kf2
{[%clk 0:00:16.3]} 61... Qh8 {[%clk 0:00:07.7]} 62. bxa6 {[%clk 0:00:16.3]}
62... Qb8 {[%clk 0:00:07.8]} 63. Ke2 {[%clk 0:00:12.4]} 63... Qxf4 {[%clk
0:00:06.3]} 64. a7 {[%clk 0:00:11.9]} 64... Qe4+ {[%clk 0:00:06.5]} 65. Kf1
{[%clk 0:00:06.4]} 65... Qf3+ {[%clk 0:00:06.3]} 66. Kg1 {[%clk 0:00:05.9]}
66... Qe3+ {[%clk 0:00:06.7]} 67. Kg2 {[%clk 0:00:06.6]} 67... Qxa7 {[%clk
0:00:06.8]} 68. a6 {[%clk 0:00:07.5]} 68... Kg5 {[%clk 0:00:06.2]} 69. Kg3
{[%clk 0:00:07.8]} 69... Qe3+ {[%clk 0:00:06.3]} 70. Kg2 {[%clk 0:00:08.4]}
70... Qb3 {[%clk 0:00:05.4]} 71. Kf2 {[%clk 0:00:08]} 71... Kxg4 {[%clk
0:00:05.6]} 72. Ke2 {[%clk 0:00:08.9]} 72... Kf4 {[%clk 0:00:06]} 0-1

[Event "Late-Titled-Tuesday-Blitz-March-12-2024"]
[Site "Chess.com"]
[Date "2024.03.12"]
[Round "5"]
[White "Mikhail_Bryakin"]
[Black "Hrant_ChessMood"]
[Result "1-0"]
[WhiteElo "2750"]
[BlackElo "2963"]
[TimeControl "180+1"]
[EndTime "14:55:56 PDT"]
[Termination "Mikhail_Bryakin won by resignation"]

1. c4 {[%clk 0:02:58.9]} 1... e5 {[%clk 0:02:46.7]} 2. Nc3 {[%clk 0:02:58.1]}
2... Bb4 {[%clk 0:02:45.4]} 3. Nd5 {[%clk 0:02:57.7]} 3... Be7 {[%clk
0:02:45.1]} 4. d4 {[%clk 0:02:56.9]} 4... d6 {[%clk 0:02:45.6]} 5. Nxe7 {[%clk
0:02:51.5]} 5... Qxe7 {[%clk 0:02:45.5]} 6. e4 {[%clk 0:02:48.6]} 6... Nc6
{[%clk 0:02:31.5]} 7. d5 {[%clk 0:02:37.8]} 7... Nd4 {[%clk 0:02:30.7]} 8. Be3
{[%clk 0:02:30.7]} 8... f5 {[%clk 0:02:21.7]} 9. Bxd4 {[%clk 0:02:11.7]} 9...
exd4 {[%clk 0:02:20.7]} 10. Qxd4 {[%clk 0:02:12.6]} 10... Nf6 {[%clk 0:02:17.1]}
11. O-O-O {[%clk 0:02:00.7]} 11... fxe4 {[%clk 0:02:13.8]} 12. Ne2 {[%clk
0:01:51.3]} 12... Bg4 {[%clk 0:02:07]} 13. h3 {[%clk 0:01:46.8]} 13... Bxe2
{[%clk 0:02:04.5]} 14. Bxe2 {[%clk 0:01:47.7]} 14... O-O {[%clk 0:02:04.7]} 15.
f4 {[%clk 0:01:14.6]} 15... exf3 {[%clk 0:02:02.5]} 16. Bxf3 {[%clk 0:01:14.4]}
16... Nd7 {[%clk 0:01:58.3]} 17. Rhf1 {[%clk 0:00:58.2]} 17... Ne5 {[%clk
0:01:55.6]} 18. Bg4 {[%clk 0:00:56.1]} 18... a5 {[%clk 0:01:45.3]} 19. Kc2
{[%clk 0:00:52.1]} 19... g6 {[%clk 0:01:34.5]} 20. b3 {[%clk 0:00:48.8]} 20...
Rxf1 {[%clk 0:01:29.7]} 21. Rxf1 {[%clk 0:00:48.4]} 21... Rf8 {[%clk 0:01:30.6]}
22. Be6+ {[%clk 0:00:43.7]} 22... Kg7 {[%clk 0:01:30.7]} 23. Rf2 {[%clk
0:00:28]} 23... b6 {[%clk 0:01:27.7]} 24. Kd1 {[%clk 0:00:24.2]} 24... h5 {[%clk
0:01:26.8]} 25. Rxf8 {[%clk 0:00:23.2]} 25... Qxf8 {[%clk 0:01:25.3]} 26. Ke2
{[%clk 0:00:23.8]} 26... Qf6 {[%clk 0:01:23.9]} 27. Qe4 {[%clk 0:00:24]} 27...
Qg5 {[%clk 0:01:22]} 28. Kd1 {[%clk 0:00:11.5]} 28... Qg3 {[%clk 0:01:19.1]} 29.
Qe2 {[%clk 0:00:08.5]} 29... Qc3 {[%clk 0:01:18.3]} 30. Qd2 {[%clk 0:00:08.8]}
30... Qa1+ {[%clk 0:01:16]} 31. Ke2 {[%clk 0:00:09.2]} 31... Qg1 {[%clk
0:01:16.6]} 32. Qg5 {[%clk 0:00:07.8]} 32... Qd4 {[%clk 0:00:57.9]} 33. Qe7+
{[%clk 0:00:06.8]} 33... Kh6 {[%clk 0:00:58.6]} 34. Qf8+ {[%clk 0:00:07.1]}
34... Kg5 {[%clk 0:00:59.3]} 35. Qe7+ {[%clk 0:00:04.3]} 35... Kf4 {[%clk
0:00:51.6]} 36. Qh4+ {[%clk 0:00:04.3]} 36... Ng4 {[%clk 0:00:52.3]} 37. hxg4
{[%clk 0:00:04.1]} 37... Qb2+ {[%clk 0:00:47]} 38. Kf1 {[%clk 0:00:04.6]} 38...
Qa1+ {[%clk 0:00:23.2]} 39. Qe1 {[%clk 0:00:05]} 39... Qxa2 {[%clk 0:00:23.8]}
40. Qf2+ {[%clk 0:00:02.7]} 40... Qxf2+ {[%clk 0:00:22.6]} 41. Kxf2 {[%clk
0:00:03.6]} 41... h4 {[%clk 0:00:20.7]} 42. Bd7 {[%clk 0:00:03.8]} 42... g5
{[%clk 0:00:20.1]} 43. Ke2 {[%clk 0:00:04.4]} 43... Kg3 {[%clk 0:00:19.6]} 44.
Kf1 {[%clk 0:00:04.4]} 44... Kf4 {[%clk 0:00:20.3]} 45. Kf2 {[%clk 0:00:04.9]}
45... Ke4 {[%clk 0:00:20.6]} 46. Ke2 {[%clk 0:00:05.6]} 46... Kd4 {[%clk
0:00:20.4]} 47. Kd2 {[%clk 0:00:06]} 47... Ke4 {[%clk 0:00:20.7]} 48. Bf5+
{[%clk 0:00:05.6]} 48... Kf4 {[%clk 0:00:21]} 49. Ke2 {[%clk 0:00:06.3]} 49...
Kg3 {[%clk 0:00:21.4]} 50. Kf1 {[%clk 0:00:06.7]} 50... Kf4 {[%clk 0:00:14]} 51.
Kf2 {[%clk 0:00:06.9]} 51... Ke5 {[%clk 0:00:13.7]} 52. Ke3 {[%clk 0:00:07.2]}
52... b5 {[%clk 0:00:14.4]} 53. Bd3 {[%clk 0:00:03.6]} 53... a4 {[%clk
0:00:13.2]} 54. bxa4 {[%clk 0:00:03.4]} 54... bxa4 {[%clk 0:00:13.4]} 55. Bc2
{[%clk 0:00:03.3]} 55... a3 {[%clk 0:00:13.5]} 56. Bb1 {[%clk 0:00:03.9]} 56...
Kf6 {[%clk 0:00:11.8]} 57. Kd4 {[%clk 0:00:04.3]} 57... Kf7 {[%clk 0:00:11.3]}
58. Kc3 {[%clk 0:00:04.3]} 58... Kf6 {[%clk 0:00:12]} 59. Kd4 {[%clk 0:00:04.6]}
59... Kf7 {[%clk 0:00:12.2]} 60. Ba2 {[%clk 0:00:05]} 60... Kf6 {[%clk
0:00:12.6]} 61. Ke4 {[%clk 0:00:04.8]} 61... Kg6 {[%clk 0:00:13.1]} 62. Bb3
{[%clk 0:00:05.2]} 62... Kf6 {[%clk 0:00:14]} 63. Kd4 {[%clk 0:00:05.5]} 63...
Kg6 {[%clk 0:00:14.7]} 64. c5 {[%clk 0:00:06.1]} 64... Kf6 {[%clk 0:00:14.7]}
65. cxd6 {[%clk 0:00:06.7]} 65... cxd6 {[%clk 0:00:15.5]} 66. Ke4 {[%clk
0:00:06.9]} 66... Kg6 {[%clk 0:00:15.9]} 67. Ba2 {[%clk 0:00:07.5]} 67... Kf6
{[%clk 0:00:16.8]} 68. Bb1 {[%clk 0:00:07.9]} 68... Kg6 {[%clk 0:00:17.2]} 69.
Kd4+ {[%clk 0:00:08.6]} 69... Kf6 {[%clk 0:00:18.1]} 70. Ba2 {[%clk 0:00:08.3]}
70... Kg6 {[%clk 0:00:18.5]} 71. Kc4 {[%clk 0:00:08.9]} 71... Kf6 {[%clk
0:00:19.4]} 72. Kb5 {[%clk 0:00:09.3]} 72... Ke5 {[%clk 0:00:19.7]} 73. Kc6
{[%clk 0:00:09.9]} 73... Kf4 {[%clk 0:00:18.7]} 74. Kxd6 {[%clk 0:00:10.6]}
74... Kg3 {[%clk 0:00:19.6]} 75. Ke5 {[%clk 0:00:09.6]} 75... Kxg2 {[%clk
0:00:19.2]} 76. d6 {[%clk 0:00:09.8]} 76... h3 {[%clk 0:00:20.1]} 77. d7 {[%clk
0:00:10.4]} 77... h2 {[%clk 0:00:21]} 78. d8=Q {[%clk 0:00:10.6]} 78... Kg3
{[%clk 0:00:16.9]} 79. Bd5 {[%clk 0:00:10.7]} 79... a2 {[%clk 0:00:16.8]} 80.
Qa5 {[%clk 0:00:11.2]} 80... a1=Q+ {[%clk 0:00:15.5]} 81. Qxa1 {[%clk
0:00:10.5]} 81... h1=Q {[%clk 0:00:16.4]} 82. Bxh1 {[%clk 0:00:10.1]} 1-0